fUSD/lending_fUSD_20240914
["ID","MTS","AMOUNT","RATE_DAILY","PERIOD"]
[338163140,1726322954539,676.28,0.00026,60]
[338163141,1726322954650,500.0,0.00026,60]
[338163142,1726322954754,500.0,0.00026,60]
[338163143,1726322954821,676.28,0.00026,60]
[338163144,1726322954906,500.0,0.00026,60]
[338163145,1726322955053,500.0,0.00026,60]
[338163146,1726322955115,676.28,0.00026,60]
[338163147,1726322955186,500.0,0.00026,60]
[338163148,1726322955336,500.0,0.00026,60]
[338163149,1726322955398,676.28,0.00026,60]
[338163150,1726322955460,500.0,0.00026,60]
[338163151,1726322955635,676.28,0.00026,60]
[338163152,1726322955702,500.0,0.00026,60]
[338163153,1726322955795,500.0,0.00026,60]
[338163154,1726322955917,676.28,0.00026,60]
[338163155,1726322956085,500.0,0.00026,60]
[338163156,1726322956237,676.28,0.00026,60]
[338163157,1726322956307,500.0,0.00026,60]
[338163158,1726322956487,500.0,0.00026,60]
[338163159,1726322956556,676.28,0.00026,60]
[338163160,1726322956721,500.0,0.00026,60]
[338163161,1726322956785,500.0,0.00026,60]
[338163162,1726322956848,500.0,0.00026,60]
[338163163,1726322956907,676.28,0.00026,60]
[338163164,1726322956977,500.0,0.00026,60]
[338163165,1726322957036,500.0,0.00026,60]
[338163166,1726322957401,500.0,0.00026,60]
[338163167,1726322957456,676.28,0.00026,60]
[338163168,1726322957520,500.0,0.00026,60]
[338163169,1726322957574,500.0,0.00026,60]
[338163170,1726322957630,1240.03,0.00026,60]
[338163171,1726322957685,500.0,0.00026,60]
[338163172,1726322957787,676.30682977,0.00026,60]
[338163173,1726322957870,500.0,0.00026,60]
[338163174,1726322957924,500.0,0.00026,60]
[338163175,1726322957983,1240.03,0.00026,60]
[338163176,1726322958047,500.0,0.00026,60]
[338163177,1726322958113,1240.03,0.00026,60]
[338163178,1726322958168,276.27927498,0.00026,60]
[338163179,1726322958225,500.0,0.00026,60]
[338163180,1726322958329,1240.03,0.00026,60]
[338163181,1726322958392,648.36,0.00026,60]
[338163182,1726322958569,1240.03,0.00026,60]
[338163183,1726322958837,1240.03,0.00026,60]
[338163184,1726322958901,10000.0,0.00026,120]
[338163185,1726322959111,1240.03,0.00026,60]
[338163186,1726322959367,1240.03,0.00026,60]
[338163187,1726322959622,668.03,0.00026,60]
[338163188,1726322959719,500.0,0.00026,60]
[338163189,1726322959789,1240.03,0.00026,60]
[338163190,1726322959908,668.03,0.00026,60]
[338163191,1726322960021,500.0,0.00026,60]
[338163192,1726322960123,2282.99,0.00026,60]
[338163193,1726322960194,1240.03,0.00026,60]
[338163194,1726322960253,668.03,0.00026,60]
[338163195,1726322960312,500.0,0.00026,60]
[338163196,1726322960371,2282.99,0.00026,60]
[338163197,1726322960430,1240.03,0.00026,60]
[338163198,1726322960492,668.03,0.00026,60]
[338163199,1726322960560,571.21,0.00026,60]
[338163200,1726322960620,500.0,0.00026,60]
[338163201,1726322960680,500.0,0.00026,60]
[338163202,1726322960749,668.03,0.00026,60]
[338163203,1726322960814,1240.03,0.00026,60]
[338163204,1726322960874,571.21,0.00026,60]
[338163205,1726322960931,500.0,0.00026,60]
[338163206,1726322960994,2282.99,0.00026,60]
[338163207,1726322961052,500.0,0.00026,60]
[338163208,1726322961114,1240.03,0.00026,60]
[338163209,1726322961173,668.03,0.00026,60]
[338163210,1726322961232,571.21,0.00026,60]
[338163211,1726322961293,500.0,0.00026,60]
[338163212,1726322961351,2282.99,0.00026,60]
[338163213,1726322961413,500.0,0.00026,60]
[338163214,1726322961478,668.03,0.00026,60]
[338163215,1726322961534,571.21,0.00026,60]
[338163216,1726322961592,500.0,0.00026,60]
[338163217,1726322961651,1240.03,0.00026,60]
[338163218,1726322961713,2282.99,0.00026,60]
[338163219,1726322961775,500.0,0.00026,60]
[338163220,1726322961833,668.03,0.00026,60]
[338163221,1726322961891,571.21,0.00026,60]
[338163222,1726322961946,1240.03,0.00026,60]
[338163223,1726322962005,2282.99,0.00026,60]
[338163224,1726322962069,500.0,0.00026,60]
[338163225,1726322962133,500.0,0.00026,60]
[338163226,1726322962193,571.21,0.00026,60]
[338163227,1726322962254,1240.03,0.00026,60]
[338163228,1726322962314,2282.99,0.00026,60]
[338163229,1726322962371,500.0,0.00026,60]
[338163230,1726322962428,668.03,0.00026,60]
[338163231,1726322962487,571.21,0.00026,60]
[338163232,1726322962543,500.0,0.00026,60]
[338163233,1726322962600,500.0,0.00026,60]
[338163234,1726322962658,668.03,0.00026,60]
[338163235,1726322962719,2282.99,0.00026,60]
[338163236,1726322962779,500.0,0.00026,60]
[338163237,1726322962835,1240.03,0.00026,60]
[338163238,1726322962890,571.21,0.00026,60]
[338163239,1726322962946,500.0,0.00026,60]
[338163240,1726322963143,668.03,0.00026,60]
[338163241,1726322963210,2282.99,0.00026,60]
[338163242,1726322963276,500.0,0.00026,60]
[338163243,1726322963342,1240.03,0.00026,60]
[338163244,1726322963401,571.21,0.00026,60]
[338163245,1726322963459,668.03,0.00026,60]
[338163246,1726322963518,500.0,0.00026,60]
[338163247,1726322963576,2282.99,0.00026,60]
[338163248,1726322963641,668.03,0.00026,60]
[338163249,1726322963947,500.0,0.00026,60]
[338163250,1726322964009,571.21,0.00026,60]
[338163251,1726322964068,543.40621083,0.00026,60]
[338163252,1726322987376,323.84,0.000101,2]
[338163253,1726322987581,323.84,0.00012364,2]
[338163263,1726323031575,-342.1,0.000127,4]
[338163264,1726323031587,-285.29701288,0.000127,4]
[338163265,1726323031603,-172.60298712,0.000127,4]
[338163266,1726323031612,-150.0,0.00012727,2]
[338163267,1726323031622,-300.0,0.00012799,2]
[338163268,1726323031631,-214.1211,0.000128,2]
[338163269,1726323031641,-2645.13647583,0.000128,2]
[338163270,1726323031650,-1200.0,0.000128,4]
[338163271,1726323031659,-6243.2312,0.000128,2]
[338163272,1726323031669,-1867.8501,0.000128,2]
[338163273,1726323031678,-1637.55928835,0.000128,2]
[338163274,1726323031688,-150.0,0.00012831,2]
[338163275,1726323031701,-150.0,0.00012845,2]
[338163276,1726323031718,-399.90769961,0.00012872,2]
[338163277,1726323031727,-1500.0,0.00012883,2]
[338163278,1726323031737,-1668.28,0.00012883,2]
[338163279,1726323031747,-3977.25,0.00012883,2]
[338163280,1726323031758,-150.0,0.00012889,2]
[338163281,1726323031768,-33306.0225,0.0001289,2]
[338163282,1726323031778,-38559.1975,0.000129,2]
[338163283,1726323031788,-23057.10199209,0.000129,2]
[338163284,1726323031799,-6849.56710779,0.000129,2]
[338163285,1726323031810,-1759.92,0.000129,2]
[338163288,1726323031836,-1039.14973622,0.000129,2]
[338163289,1726323035353,201.24993196,0.00012627,2]
[338163291,1726323037746,-294.06802,0.00012883,2]
[338163292,1726323037835,-205.92198,0.00012883,2]
[338163293,1726323037845,-1069.07582003,0.000129,2]
[338163373,1726323039628,-19771.22624387,0.000129,2]
[338163374,1726323039637,-260.8449,0.000129,2]
[338163375,1726323039909,-495.4004,0.000129,2]
[338163377,1726323039920,-600.612,0.000129,2]
[338163379,1726323039929,-292.82231454,0.000129,2]
[338163381,1726323039939,-500.0,0.000129,2]
[338163383,1726323039948,-12238.8677,0.000129,2]
[338163385,1726323039958,-7257.3533,0.000129,2]
[338163387,1726323039967,-23520.999,0.000129,2]
[338163389,1726323039977,-166.6922,0.000129,2]
[338163390,1726323039986,-1600.0,0.000129,4]
[338163393,1726323039996,-150.99,0.000129,2]
[338163394,1726323040005,-824.02460402,0.000129,2]
[338163396,1726323040014,-310.39588909,0.000129,2]
[338163399,1726323040025,-1500.0,0.000129,2]
[338163401,1726323040035,-2264.6606,0.000129,2]
[338163403,1726323040044,-150.0,0.00012919,2]
[338163404,1726323040053,-152.63909011,0.00012929,2]
[338163406,1726323040062,-179.26,0.00012952,2]
[338163408,1726323040071,-199.04951389,0.00012973,2]
[338163410,1726323040080,-150.99,0.0001299,2]
[338163412,1726323040089,-152.42290487,0.00012999,2]
[338163414,1726323040099,-196.16827053,0.00012999,2]
[338163416,1726323040108,-519.0,0.00013,2]
[338163418,1726323040118,-172678.81128268,0.00013,2]
[338163420,1726323040127,-58836.13093872,0.00013,2]
[338163422,1726323040136,-1150.81219382,0.00013,2]
[338163424,1726323040146,-500.0,0.00013,2]
[338163426,1726323040155,-1000.0,0.00013,2]
[338163428,1726323040165,-1000.0,0.00013,2]
[338163430,1726323040174,-1000.0,0.00013,2]
[338163432,1726323040183,-1000.0,0.00013,2]
[338163434,1726323040192,-1000.0,0.00013,2]
[338163436,1726323040202,-1000.0,0.00013,2]
[338163438,1726323040211,-1000.0,0.00013,2]
[338163440,1726323040220,-1000.0,0.00013,2]
[338163442,1726323040229,-1000.0,0.00013,2]
[338163444,1726323040238,-1000.0,0.00013,2]
[338163446,1726323040248,-189.51948389,0.00013,2]
[338163448,1726323040257,-1902778.37435698,0.00013,2]
[338163450,1726323040267,-250000.0,0.00013,2]
[338163452,1726323040276,-2000.0,0.00013,2]
[338163454,1726323040286,-200.0,0.00013,2]
[338163455,1726323040295,-151.0,0.00013,2]
[338163457,1726323040305,-183.30423252,0.00013,2]
[338163459,1726323040314,-151.0,0.00013,2]
[338163461,1726323040324,-253.015715,0.00013,2]
[338163463,1726323040333,-253.015715,0.00013,2]
[338163465,1726323040342,-151.0,0.00013,2]
[338163466,1726323040352,-183.251753,0.00013,2]
[338163467,1726323040361,-151.0,0.00013,2]
[338163468,1726323040371,-183.251753,0.00013,2]
[338163469,1726323040380,-151.0,0.00013,2]
[338163470,1726323040389,-151.0,0.00013,2]
[338163471,1726323040398,-151.0,0.00013,2]
[338163472,1726323040407,-151.0,0.00013,2]
[338163473,1726323040416,-151.0,0.00013,2]
[338163474,1726323040425,-151.0,0.00013,2]
[338163475,1726323040435,-151.0,0.00013,2]
[338163476,1726323040444,-151.0,0.00013,2]
[338163477,1726323040453,-151.0,0.00013,2]
[338163478,1726323040462,-151.0,0.00013,2]
[338163479,1726323040471,-151.0,0.00013,2]
[338163480,1726323040481,-8120.49455552,0.00013,2]
[338163481,1726323040490,-151.0,0.00013,2]
[338163482,1726323040499,-151.0,0.00013,2]
[338163483,1726323040508,-151.0,0.00013,2]
[338163484,1726323040517,-151.0,0.00013,2]
[338163485,1726323040527,-299.051505,0.00013,2]
[338163486,1726323040536,-299.051505,0.00013,2]
[338163487,1726323040545,-151.0,0.00013,2]
[338163488,1726323040555,-151.0,0.00013,2]
[338163489,1726323040564,-151.0,0.00013,2]
[338163490,1726323040574,-151.0,0.00013,2]
[338163491,1726323040583,-151.0,0.00013,2]
[338163492,1726323040593,-151.0,0.00013,2]
[338163493,1726323040602,-151.0,0.00013,2]
[338163494,1726323040612,-151.0,0.00013,2]
[338163495,1726323040621,-151.0,0.00013,2]
[338163496,1726323040630,-151.0,0.00013,2]
[338163497,1726323040640,-151.0,0.00013,2]
[338163498,1726323040649,-151.0,0.00013,2]
[338163499,1726323040658,-786.541499,0.00013,2]
[338163500,1726323040667,-786.541499,0.00013,2]
[338163501,1726323040677,-786.541499,0.00013,2]
[338163502,1726323040686,-786.541499,0.00013,2]
[338163503,1726323040697,-151.0,0.00013,2]
[338163504,1726323040708,-151.0,0.00013,2]
[338163505,1726323040717,-151.0,0.00013,2]
[338163506,1726323040727,-151.0,0.00013,2]
[338163507,1726323040736,-151.0,0.00013,2]
[338163508,1726323040746,-185.033398,0.00013,2]
[338163509,1726323040755,-185.033398,0.00013,2]
[338163510,1726323040764,-151.0,0.00013,2]
[338163511,1726323040775,-151.0,0.00013,2]
[338163512,1726323040785,-185.033398,0.00013,2]
[338163513,1726323040794,-185.033398,0.00013,2]
[338163514,1726323040803,-151.0,0.00013,2]
[338163515,1726323040812,-151.0,0.00013,2]
[338163516,1726323040822,-272.645918,0.00013,2]
[338163517,1726323040831,-272.645918,0.00013,2]
[338163518,1726323040840,-272.645918,0.00013,2]
[338163519,1726323040849,-272.645918,0.00013,2]
[338163520,1726323040860,-250.0,0.00013,2]
[338163521,1726323040869,-250.0,0.00013,2]
[338163522,1726323040878,-250.0,0.00013,2]
[338163523,1726323040887,-250.0,0.00013,2]
[338163524,1726323040896,-250.0,0.00013,2]
[338163525,1726323040905,-250.0,0.00013,2]
[338163526,1726323040914,-250.0,0.00013,2]
[338163527,1726323040924,-250.0,0.00013,2]
[338163528,1726323040933,-253.797566,0.00013,2]
[338163529,1726323040942,-250.0,0.00013,2]
[338163530,1726323040951,-250.0,0.00013,2]
[338163531,1726323040960,-253.797566,0.00013,2]
[338163532,1726323040970,-250.0,0.00013,2]
[338163533,1726323040979,-250.0,0.00013,2]
[338163534,1726323040989,-250.0,0.00013,2]
[338163535,1726323040999,-250.0,0.00013,2]
[338163536,1726323041008,-477.1,0.00013,2]
[338163537,1726323041017,-253.797566,0.00013,2]
[338163538,1726323041026,-151.0,0.00013,2]
[338163539,1726323041035,-253.797566,0.00013,2]
[338163540,1726323041044,-151.0,0.00013,2]
[338163541,1726323041054,-1637.55928826,0.00013033,2]
[338163542,1726323041063,-2000.0,0.0001313,2]
[338163543,1726323041072,-200.0,0.0001313,2]
[338163544,1726323041081,-300.0,0.000132,2]
[338163545,1726323041091,-326.79,0.000132,2]
[338163546,1726323041102,-300.0,0.000132,2]
[338163547,1726323041117,-427.76,0.000132,2]
[338163548,1726323041125,-300.0,0.000132,2]
[338163549,1726323041134,-855.52,0.000132,2]
[338163550,1726323041143,-1270.71943913,0.00013261,2]
[338163551,1726323041152,-200.0,0.00013261,2]
[338163552,1726323041161,-1637.55928826,0.00013267,2]
[338163553,1726323041170,-1005.06,0.000133,2]
[338163554,1726323041180,-200.0,0.00013394,2]
[338163555,1726323041189,-292.82231453,0.000134,2]
[338163556,1726323041199,-10000.0,0.00013498,2]
[338163557,1726323041209,-1637.55928826,0.000135,2]
[338163558,1726323041218,-200.0,0.00013528,2]
[338163559,1726323041227,-151.0,0.00013679,2]
[338163560,1726323041236,-151.0,0.00013679,2]
[338163561,1726323041245,-819.881168,0.00013679,2]
[338163562,1726323041254,-151.0,0.00013679,2]
[338163563,1726323041263,-819.881168,0.00013679,2]
[338163564,1726323041273,-151.0,0.00013679,2]
[338163565,1726323041281,-151.0,0.00013679,2]
[338163566,1726323041291,-151.0,0.00013679,2]
[338163567,1726323041299,-151.0,0.00013679,2]
[338163568,1726323041309,-151.0,0.00013679,2]
[338163569,1726323041318,-152.886775,0.00013679,2]
[338163570,1726323041327,-151.0,0.00013679,2]
[338163571,1726323041336,-151.0,0.00013679,2]
[338163572,1726323041345,-204.378941,0.00013679,2]
[338163573,1726323041356,-151.0,0.00013679,2]
[338163574,1726323041366,-151.0,0.00013679,2]
[338163575,1726323041376,-151.0,0.00013679,2]
[338163576,1726323041385,-151.0,0.00013679,2]
[338163577,1726323041395,-151.0,0.00013679,2]
[338163578,1726323041404,-253.015715,0.00013679,2]
[338163579,1726323041413,-253.015715,0.00013679,2]
[338163580,1726323041422,-151.0,0.00013679,2]
[338163581,1726323041432,-183.251753,0.00013679,2]
[338163582,1726323041441,-151.0,0.00013679,2]
[338163583,1726323041450,-183.251753,0.00013679,2]
[338163584,1726323041459,-151.0,0.00013679,2]
[338163585,1726323041468,-151.0,0.00013679,2]
[338163586,1726323041477,-151.0,0.00013679,2]
[338163587,1726323041486,-151.0,0.00013679,2]
[338163588,1726323041495,-151.0,0.00013679,2]
[338163589,1726323041504,-151.0,0.00013679,2]
[338163590,1726323041513,-151.0,0.00013679,2]
[338163591,1726323041522,-151.0,0.00013679,2]
[338163592,1726323041531,-151.0,0.00013679,2]
[338163593,1726323041540,-151.0,0.00013679,2]
[338163594,1726323041549,-151.0,0.00013679,2]
[338163595,1726323041558,-151.0,0.00013679,2]
[338163596,1726323041567,-151.0,0.00013679,2]
[338163597,1726323041577,-158.7,0.00013686,2]
[338163598,1726323041586,-150.0,0.00013699,2]
[338163599,1726323041595,-1637.55928826,0.00013733,2]
[338163600,1726323041605,-360.0,0.0001377,2]
[338163601,1726323041615,-160.38355689,0.00013773,2]
[338163602,1726323041624,-162.684136,0.000138,2]
[338163603,1726323041633,-162.684136,0.000138,2]
[338163604,1726323041642,-151.0,0.000138,2]
[338163605,1726323041651,-151.0,0.000138,2]
[338163606,1726323041661,-151.0,0.000138,2]
[338163607,1726323041670,-152.573835,0.000138,2]
[338163608,1726323041680,-151.0,0.000138,2]
[338163609,1726323041689,-151.0,0.000138,2]
[338163610,1726323041700,-165.74557,0.000138,2]
[338163611,1726323041709,-165.74557,0.000138,2]
[338163612,1726323041718,-165.74557,0.000138,2]
[338163613,1726323041727,-165.74557,0.000138,2]
[338163614,1726323041737,-154.001137,0.000138,2]
[338163615,1726323041747,-151.0,0.000138,2]
[338163616,1726323041756,-151.0,0.000138,2]
[338163617,1726323041765,-151.0,0.000138,2]
[338163618,1726323041778,-151.0,0.000138,2]
[338163619,1726323041788,-151.0,0.000138,2]
[338163620,1726323041797,-151.0,0.000138,2]
[338163621,1726323041806,-209.610599,0.000138,2]
[338163622,1726323041815,-209.610599,0.000138,2]
[338163623,1726323041824,-209.610599,0.000138,2]
[338163624,1726323041834,-209.610599,0.000138,2]
[338163625,1726323041843,-594.171012,0.000138,2]
[338163626,1726323041852,-594.171012,0.000138,2]
[338163627,1726323041862,-594.171012,0.000138,2]
[338163628,1726323041871,-594.171012,0.000138,2]
[338163629,1726323041881,-151.0,0.000138,2]
[338163630,1726323041890,-151.0,0.000138,2]
[338163631,1726323041899,-253.015715,0.000138,2]
[338163632,1726323041907,-253.015715,0.000138,2]
[338163633,1726323041917,-151.0,0.000138,2]
[338163634,1726323041926,-183.251753,0.000138,2]
[338163635,1726323041935,-151.0,0.000138,2]
[338163636,1726323041944,-183.251753,0.000138,2]
[338163637,1726323041953,-151.0,0.000138,2]
[338163638,1726323041962,-151.0,0.000138,2]
[338163639,1726323041971,-151.0,0.000138,2]
[338163640,1726323041980,-151.0,0.000138,2]
[338163641,1726323041990,-151.0,0.000138,2]
[338163642,1726323041998,-151.0,0.000138,2]
[338163643,1726323042007,-236.842578,0.000138,2]
[338163644,1726323042017,-151.0,0.000138,2]
[338163645,1726323042026,-151.0,0.000138,2]
[338163646,1726323042035,-151.0,0.000138,2]
[338163647,1726323042044,-151.0,0.000138,2]
[338163648,1726323042053,-151.0,0.000138,2]
[338163649,1726323042062,-151.0,0.000138,2]
[338163650,1726323042070,-151.0,0.000138,2]
[338163651,1726323042079,-151.0,0.000138,2]
[338163652,1726323042088,-151.0,0.000138,2]
[338163653,1726323042097,-151.0,0.000138,2]
[338163654,1726323042106,-299.051505,0.000138,2]
[338163655,1726323042115,-299.051505,0.000138,2]
[338163656,1726323042124,-299.051505,0.000138,2]
[338163657,1726323042133,-299.051505,0.000138,2]
[338163658,1726323042142,-151.0,0.000138,2]
[338163659,1726323042152,-151.0,0.000138,2]
[338163660,1726323042160,-154.159282,0.000138,2]
[338163661,1726323042170,-151.0,0.000138,2]
[338163662,1726323042179,-151.0,0.000138,2]
[338163663,1726323042188,-151.0,0.000138,2]
[338163664,1726323042197,-151.0,0.000138,2]
[338163665,1726323042206,-151.0,0.000138,2]
[338163666,1726323042216,-151.0,0.000138,2]
[338163667,1726323042225,-244275.538003,0.000138,3]
[338163668,1726323042234,-151.0,0.000138,2]
[338163669,1726323042242,-786.541499,0.000138,2]
[338163670,1726323042252,-786.541499,0.000138,2]
[338163671,1726323042261,-151.0,0.000138,2]
[338163672,1726323042271,-185.033398,0.000138,2]
[338163673,1726323042281,-151.0,0.000138,2]
[338163674,1726323042290,-185.033398,0.000138,2]
[338163675,1726323042299,-151.0,0.000138,2]
[338163676,1726323042308,-272.645918,0.000138,2]
[338163677,1726323042316,-272.645918,0.000138,2]
[338163678,1726323042326,-253.797566,0.000138,2]
[338163679,1726323042335,-253.797566,0.000138,2]
[338163680,1726323042344,-151.0,0.000138,2]
[338163681,1726323042354,-162.684136,0.000139,2]
[338163682,1726323042363,-162.684136,0.000139,2]
[338163683,1726323042372,-153.067999,0.000139,2]
[338163684,1726323042382,-151.0,0.000139,2]
[338163685,1726323042391,-151.0,0.000139,2]
[338163686,1726323042400,-151.0,0.000139,2]
[338163687,1726323042409,-163.800692,0.000139,2]
[338163688,1726323042418,-819.881168,0.000139,2]
[338163689,1726323042427,-151.0,0.000139,2]
[338163690,1726323042436,-819.881168,0.000139,2]
[338163691,1726323042445,-151.0,0.000139,2]
[338163692,1726323042454,-151.0,0.000139,2]
[338163693,1726323042463,-151.0,0.000139,2]
[338163694,1726323042472,-151.0,0.000139,2]
[338163695,1726323042481,-154.532669,0.000139,2]
[338163696,1726323042491,-292.82231453,0.000139,2]
[338163697,1726323042500,-204.378941,0.000139,2]
[338163698,1726323042509,-151.0,0.000139,2]
[338163699,1726323042518,-151.0,0.000139,2]
[338163700,1726323042527,-151.0,0.000139,2]
[338163701,1726323042536,-151.0,0.000139,2]
[338163702,1726323042545,-165.74557,0.000139,2]
[338163703,1726323042554,-165.74557,0.000139,2]
[338163704,1726323042563,-151.0,0.000139,2]
[338163705,1726323042572,-151.0,0.000139,2]
[338163706,1726323042581,-151.0,0.000139,2]
[338163707,1726323042590,-209.610599,0.000139,2]
[338163708,1726323042598,-209.610599,0.000139,2]
[338163709,1726323042608,-594.171012,0.000139,2]
[338163710,1726323042616,-594.171012,0.000139,2]
[338163711,1726323042626,-151.0,0.000139,2]
[338163712,1726323042635,-151.0,0.000139,2]
[338163713,1726323042644,-253.015715,0.000139,2]
[338163714,1726323042653,-253.015715,0.000139,2]
[338163715,1726323042663,-151.0,0.000139,2]
[338163716,1726323042673,-183.251753,0.000139,2]
[338163717,1726323042682,-151.0,0.000139,2]
[338163718,1726323042691,-183.251753,0.000139,2]
[338163719,1726323042704,-151.0,0.000139,2]
[338163720,1726323042713,-151.0,0.000139,2]
[338163721,1726323042722,-151.0,0.000139,2]
[338163722,1726323042732,-151.0,0.000139,2]
[338163723,1726323042742,-151.0,0.000139,2]
[338163724,1726323042751,-151.0,0.000139,2]
[338163725,1726323042761,-151.0,0.000139,2]
[338163726,1726323042770,-151.0,0.000139,2]
[338163727,1726323042781,-157.461217,0.000139,2]
[338163728,1726323042791,-151.0,0.000139,2]
[338163729,1726323042800,-151.0,0.000139,2]
[338163730,1726323042810,-151.0,0.000139,2]
[338163731,1726323042819,-299.051505,0.000139,2]
[338163732,1726323042828,-299.051505,0.000139,2]
[338163733,1726323042837,-151.0,0.000139,2]
[338163734,1726323042847,-151.0,0.000139,2]
[338163735,1726323042856,-151.0,0.000139,2]
[338163736,1726323042866,-151.0,0.000139,2]
[338163737,1726323042875,-151.0,0.000139,2]
[338163738,1726323042884,-151.0,0.000139,2]
[338163739,1726323042894,-436661.125176,0.000139,3]
[338163740,1726323042903,-151.0,0.000139,2]
[338163741,1726323042912,-786.541499,0.000139,2]
[338163742,1726323042921,-786.541499,0.000139,2]
[338163743,1726323042931,-151.0,0.000139,2]
[338163744,1726323042940,-824.02460401,0.000139,2]
[338163745,1726323042949,-185.033398,0.000139,2]
[338163746,1726323042958,-151.0,0.000139,2]
[338163747,1726323042967,-185.033398,0.000139,2]
[338163748,1726323042976,-151.0,0.000139,2]
[338163749,1726323042985,-272.645918,0.000139,2]
[338163750,1726323042995,-272.645918,0.000139,2]
[338163751,1726323043004,-253.797566,0.000139,2]
[338163753,1726323043013,-253.797566,0.000139,2]
[338163754,1726323043022,-151.0,0.000139,2]
[338163755,1726323043031,-204.57,0.00013967,2]
[338163756,1726323043040,-1637.55928826,0.00013967,2]
[338163757,1726323043050,-9201.44185292,0.00014,2]
[338163758,1726323043059,-1000.0,0.00014,3]
[338163759,1726323043067,-1459.0,0.00014,2]
[338163760,1726323043076,-1000.0,0.00014009,2]
[338163761,1726323043085,-1000.0,0.00014009,2]
[338163762,1726323043094,-285.3701,0.00014009,2]
[338163763,1726323043103,-150.0,0.00014037,2]
[338163764,1726323043113,-810.0,0.00014037,2]
[338163765,1726323043122,-931.0,0.00014037,2]
[338163766,1726323043131,-558.0,0.00014037,2]
[338163767,1726323043140,-551.525,0.00014037,2]
[338163768,1726323043149,-1901.0,0.00014037,2]
[338163769,1726323043158,-3342.0,0.00014037,2]
[338163770,1726323043168,-420.0,0.00014039,2]
[338163771,1726323043177,-800.0,0.00014043,2]
[338163772,1726323043186,-1920.0,0.00014045,2]
[338163773,1726323043195,-1118.0,0.00014045,2]
[338163774,1726323043205,-248.0,0.00014045,2]
[338163775,1726323043214,-804.0,0.00014045,2]